Cogmind - Beta 16.1 @@@ ROGUE MODE // 2026.02.21 @ 01:55:07 Player: Ceorik Result: Destroyed by D-53 Grenadier with Mini Grenade Launcher Performance ------------- Evolutions (0) 0 Regions Visited (2) 400 Robots Destroyed (11) 55 Value Destroyed (340) 340 Prototype IDs (0) 0 Alien Tech Used (0) 0 Bonus (0) 0 TOTAL SCORE: 795 Bonus ------- None Cogmind --------- Core Integrity 0/250 Matter 290/300 Energy 96/100 System Corruption 0% Temperature Cool (2) Movement Walking (120) Location -10/Mines Parts ------- > --- POWER (1) -------- (None) > --- PROPULSION (2) --- Aluminum Leg Aluminum Leg > --- UTILITY (2) ------ Small Storage Unit Signal Interpreter > --- WEAPON (2) ------- Mace Mace > --- INVENTORY (8) ---- Aluminum Leg Seismic Detector Beam Rifle Beam Rifle Peak State ------------ > --- POWER ------------ Light Nuclear Core > --- PROPULSION ------- Aluminum Leg Aluminum Leg > --- UTILITY ---------- Small Storage Unit Signal Interpreter > --- WEAPON ----------- Mace Mace > --- INVENTORY -------- Aluminum Leg Aluminum Leg Seismic Detector Beam Rifle Beam Rifle [Rating: 11] Favorites ----------- Power Ion Engine Engine Ion Engine Power Core Light Nuclear Core Propulsion Light Treads Treads Light Treads Leg Aluminum Leg Utility Small Storage Unit Device Seismic Detector Storage Small Storage Unit Processor Signal Interpreter Weapon Mace Energy Gun Small Laser Ballistic Gun Assault Rifle Impact Weapon Mace Build | -11 -10 -10 ------- Run | Yrd Mat Min Slots Evolved . | . . . Power . | . . . Propulsion . | . . . Utility . | . . . Weapon . | . . . Parts Attached 16 | 6 8 2 Power 2 | 1 . 1 Engine 1 | 1 . . Core 1 | . . 1 Reactor . | . . . Propulsion 7 | 2 4 1 Treads 2 | 2 . . Leg 5 | . 4 1 Wheel . | . . . Hover . | . . . Flight . | . . . Utility 3 | 1 2 . Device 1 | . 1 . Storage 1 | 1 . . Processor 1 | . 1 . Hackware . | . . . Protection . | . . . Artifact . | . . . Weapon 4 | 2 2 . Energy Gun 1 | 1 . . Energy Cannon . | . . . Ballistic Gun 1 | 1 . . Ballistic Cannon . | . . . Launcher . | . . . Special Weapon . | . . . Impact Weapon 2 | . 2 . Slashing Weapon . | . . . Piercing Weapon . | . . . Special Melee Weapon . | . . . Unidentified Prototypes . | . . . Parts Lost 3 | . . 3 Power 2 | . . 2 Propulsion 1 | . . 1 Utility . | . . . Weapon . | . . . Highest Loss Streak 3 | . . 3 To Critical Strikes . | . . . Average Backups 4 | . 4 5 Power . | . . . Propulsion 1 | . 1 2 Utility . | . . 1 Weapon 1 | . 1 2 Tool/Special . | . . . Unused Backups 4 | 1 . 3 Power . | . . . Propulsion 2 | 1 . 1 Utility . | . . . Weapon 2 | . . 2 Tool/Special . | . . . Average Slot Usage (%) 96 | . 96 95 Engine 13 | . 14 8 Treads 15 | . 16 . Leg 12 | . 11 28 Storage 13 | . 13 14 Processor 10 | . 10 14 Energy Gun 4 | . 4 . Ballistic Gun 4 | . 4 . Impact Weapon 18 | . 17 28 Peak Build Rating 11 | 6 10 11 Average Rating 8 | 4 8 9 On Entrance 5 | . 6 10 Avg Prop Armor Cover (%) . | . . . Naked Turns . | . . . Heaviest Build 14 | 13 14 14 Greatest Support 40 | 40 40 20 Greatest Overweight (x) . | . . . Average Overweight (x) . | . . . Largest Inventory Capacity 8 | 8 8 8 Average Capacity 7 | 7 7 8 Most Carried 7 | 3 7 6 Average Carried 4 | . 4 5 Final Capacity 8 | 8 8 8 Final Carried 6 | . 6 4 Class Distribution -------------------- 100% | Mutant Dominant Class ---------------- Mutant | -10/Materials Mutant | -10/Mines Resources | -11 -10 -10 ----------- Run | Yrd Mat Min Matter Collected 375 | 200 175 . Remotely . | . . . Salvage Created 367 | . 297 70 Parts 19 | . 18 1 Haulers Intercepted 1 | . 1 . Recyclers Shooed 1 | . 1 . Parts Field Recycled . | . . . Retrieved Matter . | . . . Parts Self-Destructed . | . . . Prevented . | . . . Parts Restored . | . . . Kills | -11 -10 -10 ------- Run | Yrd Mat Min Combat Hostiles Destroyed 8 | . 6 2 Melee 5 | . 4 1 Guns 2 | . 2 . Classes Destroyed 4 | . 4 . Worker 1 | . 1 . Hauler 1 | . 1 . Operator 1 | . 1 . Grunt 8 | . 6 2 Best Kill Streak 3 | . 3 1 Combat Bots Only 2 | . 2 1 Max Kills in Single Turn 1 | . 1 1 Gunslinging . | . . . Exploded . | . . . Melee 1 | . 1 1 Uniques/NPCs Destroyed . | . . . Combat | -11 -10 -10 -------- Run | Yrd Mat Min Hostile Shots Fired 61 | . 25 36 Missed 15 | . 5 10 Hits 46 | . 20 26 Projectile 46 | . 20 26 AOE 7 | . . 7 Critical Strikes 2 | . . 2 Damage Taken 818 | . 256 562 Core 258 | . 62 196 Absorbed by Shields . | . . . Core Remaining (%) 100 | 100 . . Volleys Fired 9 | . 9 . Largest 2 | . 2 . Hottest 60 | . 60 . Shots Fired 18 | . 18 . Gun 18 | . 18 . Cannon . | . . . Launcher . | . . . Special . | . . . Kinetic 9 | . 9 . Thermal 9 | . 9 . Explosive . | . . . Electromagnetic . | . . . Robot Hit Streak 5 | . 5 . Robot Miss Streak 2 | . 2 . Penetration Max . | . . . Secondary Targets . | . . . Shots Hit Robots 40 | . 28 12 Core Hits 11 | . 10 1 Critical Kills 2 | . 2 . Critical Parts Destroyed 2 | . . 2 Critical Strikes 4 | . 2 2 Smash 4 | . 2 2 Melee Attacks 43 | . 25 18 Impact 43 | . 25 18 Slashing . | . . . Piercing . | . . . Sneak Attacks 6 | . 5 1 Combat Hostiles 1 | . . 1 Follow-up Attacks 8 | . 5 3 Damage Inflicted 1223 | . 887 336 Guns 146 | . 146 . Cannons . | . . . Explosions . | . . . Melee 1077 | . 741 336 Ramming . | . . . Kinetic 91 | . 91 . Thermal 55 | . 55 . Explosive . | . . . Electromagnetic . | . . . Impact 1077 | . 741 336 Slashing . | . . . Piercing . | . . . Highest Corruption . | . . . Average Corruption . | . . . Corruption Purged . | . . . Corruption Blocked . | . . . Overload Shots . | . . . Overflow Damage 152 | . 93 59 Projectiles . | . . . Explosions . | . . . Melee 152 | . 93 59 Knockbacks 5 | . 1 4 Impact 5 | . 1 4 Kinetic . | . . . Secondary . | . . . Self-Inflicted Damage . | . . . Shots . | . . . Rammed . | . . . Targets Rammed . | . . . Kicked . | . . . Crushed . | . . . Highest Temperature 18 | . 18 7 Average Temperature 10 | . 11 6 Received Heat Transfer 345 | . 144 201 Siege Activations . | . . . Martial Activations . | . . . Shielding Activations . | . . . Robots Disrupted . | . . . Combat Hostiles . | . . . Robots Corrupted 2 | . 1 1 Combat Hostiles 1 | . . 1 Parts Fried 5 | . 2 3 Impact Corruptions 6 | . 4 2 Robots Melted . | . . . Combat Hostiles . | . . . Parts Melted . | . . . Heat Transferred 125 | . 125 . Parts Sabotaged . | . . . Parts Stolen . | . . . Parts Stripped . | . . . Power Chain Reactions . | . . . Alert | -11 -10 -10 ------- Run | Yrd Mat Min Maximum Alert Level . | . . . Low Security (%) 100 | 100 100 100 Level 1 . | . . . Level 2 . | . . . Level 3 . | . . . Level 4 . | . . . Level 5 . | . . . High Security . | . . . Max Security . | . . . Peak Influence 117 | . 117 68 Initial 33 | . . 33 Average 27 | . 28 47 Influence Increases 318 | . 253 65 Destroy 0b10 Robot/C 160 | . 120 40 Destroy 0b10 Robot/NC 15 | . 15 . Destroy Leader 52 | . 42 10 Successful Hack 42 | . 42 . Disable Machine 15 | . . 15 Destroy Structure 4 | . 4 . Lose Combat Pursuer 30 | . 30 . Influence Decreases 280 | . 167 113 Entered New Map 53 | . . 53 Time Decay 197 | . 167 30 Lost Part 30 | . . 30 Squads Dispatched 3 | . 3 . Investigation 1 | . 1 . Extermination . | . . . Reinforcement 2 | . 2 . Assault . | . . . Garrison . | . . . Intercept . | . . . Searches Triggered . | . . . Construction Impeded . | . . . Haulers Reinforced . | . . . Active Scanning Responses . | . . . Cargo Convoy Interrupts . | . . . Stealth | -11 -10 -10 --------- Run | Yrd Mat Min Distress Signals . | . . . Communications Jammed . | . . . Distress Signals . | . . . Times Spotted 18 | . 13 5 Peak Tracking Total 5 | . 5 3 Tactical Retreats 1 | . 1 . Traps | -11 -10 -10 ------- Run | Yrd Mat Min Traps Triggered . | . . . Indirectly . | . . . Trap Hack Attempts . | . . . Triggered . | . . . Disarmed . | . . . Reprogrammed . | . . . Reused . | . . . Traps Extracted . | . . . Installed . | . . . Triggered . | . . . Machines | -11 -10 -10 ---------- Run | Yrd Mat Min Machines Disabled 1 | . . 1 Max in Single Turn 1 | . . 1 Machines Repaired . | . . . Machines Dismantled . | . . . Machines Sabotaged . | . . . Overloaded Fab Kills . | . . . Hacking | -11 -10 -10 --------- Run | Yrd Mat Min Machines Accessed 5 | . 5 . Terminals 4 | . 4 . Fabricators . | . . . Repair Stations . | . . . Recycling Units 1 | . 1 . Scanalyzers . | . . . Garrison Access . | . . . Total Hacks 17 | . 17 . Successful 9 | . 9 . Failed 8 | . 8 . Catastrophic 1 | . 1 . Database Lockouts . | . . . Manual 19 | . 19 . Terminals 16 | . 16 . Fabricators . | . . . Repair Stations . | . . . Recycling Units 1 | . 1 . Scanalyzers . | . . . Garrison Access . | . . . Terminal Hacks 4 | . 4 . Robot Schematic 1 | . 1 . Robot Analysis 3 | . 3 . Fabricator Hacks . | . . . Repair Station Hacks . | . . . Recycling Unit Hacks 1 | . 1 . Report Inventory 1 | . 1 . Scanalyzer . | . . . Garrison Access Hacks . | . . . Unauthorized Hacks 4 | . 4 . Terminals 4 | . 4 . Botnet 4 | . 4 . Fabricators . | . . . Repair Stations . | . . . Recycling Units . | . . . Scanalyzers . | . . . Garrison Access . | . . . Data Cores Recovered . | . . . Used . | . . . Hacking Detections 4 | . 4 . Full Trace Events 1 | . 1 . Feedback Events . | . . . Feedback Blocked . | . . . Robot Schematics Acquired 1 | . 1 . Robots Built . | . . . Authchips . | . . . Time . | . . . Total Robot Build Rating . | . . . Part Schematics Acquired . | . . . Parts Built . | . . . Authchips . | . . . Time . | . . . Total Part Build Rating . | . . . Part Studies Acquired . | . . . Parts Repaired . | . . . Time . | . . . Parts Recycled . | . . . Recycled Matter . | . . . Retrieved Matter . | . . . Retrieved Components . | . . . Parts Scanalyzed . | . . . Part Schematics Acquired . | . . . Parts Damaged . | . . . Bothacking | -11 -10 -10 ------------ Run | Yrd Mat Min Used RIF Installer . | . . . Robots Hacked . | . . . Non-combat . | . . . Combat . | . . . Robot Hacks Applied . | . . . Relay Couplers Released . | . . . Fabnet Peak Effective % . | . . . Robots Rewired . | . . . Allies Hacked . | . . . Hacks Repelled . | . . . Allies | -11 -10 -10 -------- Run | Yrd Mat Min Total Allies . | . . . Largest Group . | . . . Highest-Rated Group . | . . . Highest-Rated Ally . | . . . Total Orders . | . . . Ally Attacks . | . . . Total Damage . | . . . Kills . | . . . Allies Corrupted . | . . . Allies Melted . | . . . Intel | -11 -10 -10 ------- Run | Yrd Mat Min Active Infowar (turns) 37 | . 37 . Seismic 37 | . 37 . Robot Analysis Total 3 | . 3 . Derelict Logs Recovered . | . . . Drone Launches . | . . . Drone Recoveries . | . . . Exploration | -11 -10 -10 ------------- Run | Yrd Mat Min Turns Passed 830 | 73 697 60 Spaces Moved 413 | 43 356 14 Core 9 | 9 . . Treads 241 | 34 207 . Legs 163 | . 149 14 Wheels . | . . . Hover . | . . . Flight . | . . . Fastest Speed 50 | 50 120 120 Average Speed 141 | 136 143 120 Slowest Speed 160 | 160 160 120 Overloaded Moves . | . . . Propulsion Burnouts . | . . . Robots Hopped . | . . . Potential Cave-ins . | . . . Cave-ins Triggered . | . . . Exploration Rate (%) 22 | 3 55 9 Regions Visited 2 Branch Regions 1 Pre-discovered Areas . | . . . Known Exits Taken 1 | . 1 . Unknown Exits Taken 1 | 1 . . Scrap Searched . | . . . Spaces Dug 4 | . 4 . Terrain Destroyed 4 | . 4 . Melee 4 | . 4 . Projectile . | . . . AOE . | . . . Terrain Rammed . | . . . Walls Destroyed . | . . . Machines Disabled . | . . . Actions | -11 -10 -10 --------- Run | Yrd Mat Min Total 582 | 58 492 32 Wait 85 | . 83 2 Move 411 | 42 355 14 Hop . | . . . Pick Up 21 | 8 13 . Fast Attach . | . . . Attach 11 | 6 3 2 Detach . | . . . Swap 6 | . 6 . Drop 8 | 2 6 . Fire 9 | . 9 . Melee 31 | . 17 14 Ram . | . . . Kick . | . . . Crush . | . . . Escape Stasis . | . . . Rewire . | . . . Trap . | . . . Miscellaneous . | . . . Route ------- -11/Scrapyard -10/Materials (discovered 2 exits: *Mat / *Min) -10/Mines History --------- Turn | Location | Event 12 | -11/Scrapyard | Discovered new exit (range 16) 74 | -11/Scrapyard | Entered Materials 341 | -10/Materials | Build established: Mutant 534 | -10/Materials | Discovered new exit (range 5) 539 | -10/Materials | Identified exit to Mines 589 | -10/Materials | Discovered new exit (range 5) 733 | -10/Materials | Identified exit to Materials 771 | -10/Materials | Entered Mines 772 | -10/Mines | Assembled infested the area 802 | -10/Mines | Core integrity fell below 50% 826 | -10/Mines | Core integrity fell below 20% 831 | -10/Mines | Destroyed by D-53 Grenadier with Mini Grenade Launcher Last Messages --------------- 00805_ Ion Engine destroyed. 00805_ Critical hit (Burn: +37). 00805_ G-47 Trooper knocked back. 00812_ Mace follow-up attack on G-47 Trooper. 00812_ G-47 Trooper knocked back. 00814_ C-45 Heavy ARC bursts open, deploying its payload. 00814_ D-53 Grenadier unfolds itself. 00818_ Mace follow-up attack on G-47 Trooper. 00818_ G-47 Trooper suffers critical hit (Smash). 00818_ Destroyed Aluminum Leg. 00818_ G-47 Trooper system corrupted by crushing effect. 00818_ Lgt. Nuclear Core fried. 00818_ G-47 Trooper destroyed. 00825_ Aluminum Leg destroyed. 00825_ Seismic Survey Station disabled. 00829_ Lgt. Nuclear Core destroyed. 00829_ Seismic Survey Station disabled. Map ----- +----------------------------------------------------+ | ?????????????????????????????????????????????????? | | ?????????????????????????????????????????????????? | | ?????????????????????????????????????????????????? | | ?????????????????????????????????????????????????? | | ?????????????????????????????????????????????????? | | ?????????????????????????????????????????????????? | | ?????????????????????????????????????????????????? | | ?????????????????????????????????????????????????? | | ?????????????????????????????????????????????????? | | ?????????????????????????????????????????????????? | | ?????????????????????????????????????????????????? | | ?????????????????????????????????????????????????? | | ?????????????????????????????????????????????????? | | ?????????????????????????????????????????????????? | | ?????????????????????????????????????????????????? | | ?????????????????????????????????????????????????? | | ???????????????################??????????????????? | | ????????????#### #??????????????????? | | ???????????## #??????????????????? | | ???????????# d #??????????????????? | | ??????????### #??????????????????? | | ??????????? "" #??????????????????? | | ??????????????# "" ######?????????????? | | ??????????????# % "" ???????????? | | ???????????????# d #??????????????????? | | ???????????????# @ "" #??????????????????? | | ???????????????#% #??????????????????? | | ???????????????#= #??????????????????? | | ???????????????# #??????????????????? | | ???????????????####### ####??????????????????? | | ?????????????????????## ?????????????????????? | | ??????????????????????## ##????????????????????? | | ???????????????????????#####?????????????????????? | | ?????????????????????????????????????????????????? | | ?????????????????????????????????????????????????? | | ?????????????????????????????????????????????????? | | | | | | | | | | | | | | | | | | | | | | | | | | | | | +----------------------------------------------------+ Best States ------------- Heat Dissipation 25 Energy Generation 14 Energy Capacity 250 Matter Stores 300 Matter Capacity 300 Sight Range 16 Terrain Scan Density 10 Evasion (%) 55 Recoil Reduction 2 Item Schematics ----------------- None Robot Schematics ------------------ G-34 Mercenary | -10/Materials | Hacked Fabricated ------------ Nothing Repaired ---------- Nothing Studied --------- None Alien Tech Used ----------------- None Achievements -------------- None Challenges ------------ None Game ------ Seed BlastDerelictJetlance Manual? 0 Play Time 00:11:43 Cumulative 33.9 hours Start 2026.02.21 @ 01:43:55 End 2026.02.21 @ 01:55:07 Sessions 1 Manual Loads 0 Difficulty Rogue Special Mode None Game No. 37 Rogue 37 Adventurer 0 Explorer 0 Win Type - Total 0 Types 0/0/0/0/0/0/0/0/0/0 Lore% 39 Gallery% 32 Achievement% 26 Wizard Run 0 Options --------- Layout 1 ASCII 0 Keyboard 0 Movement Mouse Keybinds 0 Fullscreen 1 Font 24/Swanston Map View 50x35 Zoom Use 0% Tactical HUD 1 Map Filters NONE Filters NONE Steam 1 RUN: 02e660bb-d06a-4978-8458-41108179aa19